[Event "Fagernes GM Swiss 2020"]
[Site "Fagernes"]
[Date "2020.10.05"]
[Round "2.3"]
[White "Urkedal, Frode Olav Olsen"]
[Black "Ranaldi, Lucas"]
[Result "1-0"]
[ECO "E16"]
[WhiteElo "2549"]
[BlackElo "2334"]
[Annotator "ChessBase"]
[PlyCount "93"]
[EventDate "2020.10.04"]
[EventType "swiss"]
[EventCountry "NOR"]
[SourceTitle "playchess.com"]
[Source "ChessBase"]
[SourceQuality "1"]
[TimeControl "40/6000+30:2400+30"]

1. d4 {[%emt 0:00:00]} Nf6 {[%emt 0:00:00]} 2. c4 {[%emt 0:00:03]} e6 {[%emt 0:00:04]} 3. Nf3 {[%emt 0:00:05]} b6 {[%emt 0:00:10]} 4. g3 {[%emt 0:00:05]} Bb7 {[%emt 0:00:07]} 5. Bg2 {[%emt 0:00:04]} Bb4+ {[%emt 0:00:12]} 6. Bd2 {[%emt 0:00:19]} Bxd2+ {[%emt 0:00:06]} 7. Qxd2 {[%emt 0:00:09]} O-O {[%emt 0:00:09]} 8. Nc3 {[%emt 0:00:24]} d6 {[%emt 0:00:08]} 9. Qc2 {[%emt 0:03:46]} c5 {[%emt 0:00:15]} 10. Rd1 {[%emt 0:05:21]} cxd4 {[%emt 0:04:48]} 11. Rxd4 {[%emt 0:01:07]} Nc6 {[%emt 0:12:27]} 12. Rh4 {[%emt 0:07:29]} Ne5 {[%emt 0:12:26]} 13. O-O {[%emt 0:09:34]} Nxf3+ {[%emt 0:02:28]} 14. Bxf3 {[%emt 0:01:13]} Bxf3 {[%emt 0:00:58]} 15. exf3 {[%emt 0:00:05]} Qe7 {[%emt 0:02:01]} 16. Re1 {[%emt 0:05:17]} h6 {[%emt 0:07:01]} 17. Rd4 {[%emt 0:03:15]} Rac8 {[%emt 0:10:15]} 18. Qd3 {[%emt 0:03:06]} Rfd8 {[%emt 0:02:58]} 19. f4 {[%emt 0:10:59]} Rd7 {[%emt 0:02:18]} 20. f5 {[%emt 0:15:46]} e5 {[%emt 0:00:38]} 21. Nd5 {[%emt 0:00:58]} Nxd5 {[%emt 0:01:15]} 22. Rxd5 {[%emt 0:00:10]} Rdd8 {[%emt 0:19:28]} 23. b3 {[%emt 0:04:11]} Rc5 {[%emt 0:06:28]} 24. Rd1 {[%emt 0:05:01]} Rxd5 {[%emt 0:02:27]} 25. Qxd5 {[%emt 0:00:33]} Qd7 {[%emt 0:08:26]} 26. Qe4 {[%emt 0:02:22]} Qe7 {[%emt 0:06:07]} 27. Rd5 {[%emt 0:01:38]} Rc8 {[%emt 0:01:37]} 28. a4 {[%emt 0:01:46]} Kf8 {[%emt 0:02:45]} 29. h4 {[%emt 0:07:32]} Kg8 {[%emt 0:00:20]} 30. Rd3 {[%emt 0:03:34]} Re8 {[%emt 0:02:03]} 31. Kg2 {[%emt 0:00:39]} Rd8 {[%emt 0:00:46]} 32. Rd5 {[%emt 0:03:55]} Rc8 {[%emt 0:00:53]} 33. Qd3 {[%emt 0:01:33]} Rc6 {[%emt 0:00:25]} 34. Kg1 {[%emt 0:01:43]} Qc7 {[%emt 0:01:24]} 35. Qf3 {[%emt 0:01:34]} Qe7 {[%emt 0:00:40]} 36. a5 {[%emt 0:05:08]} bxa5 {[%emt 0:00:17]} 37. Rxa5 {[%emt 0:00:15]} Rb6 {[%emt 0:01:32]} 38. Qa8+ {[%emt 0:02:34]} Qf8 {[%emt 0:00:02]} 39. Rxa7 {[%emt 0:00:22]} Rxb3 {[%emt 0:00:49]} 40. Qd5 {[%emt 0:00:06]} Rb1+ {[%emt 0:01:23]} 41. Kg2 {[%emt 0:42:09]} Rb6 {[%emt 0:27:29]} 42. Rd7 {[%emt 0:00:00]} Ra6 {[%emt 0:00:27]} 43. c5 {[%emt 0:00:00]} Qa8 {[%emt 0:00:50]} 44. Rb7 {[%emt 0:00:00]} Kh8 {[%emt 0:05:26]} 45. c6 {[%emt 0:00:00]} Qe8 {[%emt 0:06:16]} 46. c7 {[%emt 0:00:00]} Ra5 {[%emt 0:03:15]} 47. Rb8 {[%emt 0:00:00]} 1-0

[Event "Fagernes GM Swiss 2020"]
[Site "Fagernes"]
[Date "2020.10.05"]
[Round "2.4"]
[White "Lund, Gunnar"]
[Black "Miezis, Normunds"]
[Result "1-0"]
[ECO "D00"]
[WhiteElo "2302"]
[BlackElo "2485"]
[Annotator "ChessBase"]
[PlyCount "125"]
[EventDate "2020.10.04"]
[EventType "swiss"]
[EventCountry "NOR"]
[SourceTitle "playchess.com"]
[Source "ChessBase"]
[SourceQuality "1"]
[TimeControl "40/6000+30:2400+30"]

1. d4 {[%emt 0:00:00]} Nf6 {[%emt 0:00:08]} 2. Bf4 {[%emt 0:00:00]} d5 {[%emt 0:02:07]} 3. e3 {[%emt 0:00:04]} g6 {[%emt 0:01:57]} 4. Nc3 {[%emt 0:01:15]} Bg7 {[%emt 0:01:55]} 5. h4 {[%emt 0:00:16]} c6 {[%emt 0:03:24]} 6. Qd2 {[%emt 0:03:16]} Nbd7 {[%emt 0:05:46]} 7. Nf3 {[%emt 0:06:25]} b5 {[%emt 0:03:59]} 8. Bd3 {[%emt 0:01:38]} b4 {[%emt 0:10:05]} 9. Ne2 {[%emt 0:03:59]} Qb6 {[%emt 0:05:01]} 10. c4 {[%emt 0:22:19]} bxc3 {[%emt 0:06:37]} 11. Nxc3 {[%emt 0:00:44]} Ba6 {[%emt 0:00:41]} 12. Bxa6 {[%emt 0:05:24]} Qxa6 {[%emt 0:00:30]} 13. Qe2 {[%emt 0:00:28]} Qb7 {[%emt 0:11:37]} 14. Ne5 {[%emt 0:13:37]} Nf8 {[%emt 0:05:57]} 15. Nd3 {[%emt 0:02:15]} N6d7 {[%emt 0:01:25]} 16. h5 {[%emt 0:08:15]} Ne6 {[%emt 0:01:52]} 17. O-O {[%emt 0:03:03]} Nxf4 {[%emt 0:04:18]} 18. Nxf4 {[%emt 0:00:16]} e5 {[%emt 0:00:32]} 19. dxe5 {[%emt 0:00:58]} Nxe5 {[%emt 0:00:18]} 20. Na4 {[%emt 0:02:51]} O-O {[%emt 0:01:58]} 21. Rac1 {[%emt 0:00:37]} Rfe8 {[%emt 0:02:18]} 22. Nc5 {[%emt 0:02:19]} Qe7 {[%emt 0:01:48]} 23. Ncd3 {[%emt 0:05:00]} Rac8 {[%emt 0:03:36]} 24. Rc2 {[%emt 0:00:25]} Qd6 {[%emt 0:06:43]} 25. Nxe5 {[%emt 0:04:52]} Bxe5 {[%emt 0:01:17]} 26. Nd3 {[%emt 0:00:59]} Bg7 {[%emt 0:06:49]} 27. Qf3 {[%emt 0:02:02]} Re4 {[%emt 0:09:55]} 28. g3 {[%emt 0:00:43]} Rb8 {[%emt 0:08:24]} 29. Rfc1 {[%emt 0:02:10]} Rb6 {[%emt 0:00:07]} 30. hxg6 {[%emt 0:02:51]} hxg6 {[%emt 0:00:27]} 31. b4 {[%emt 0:01:21]} Bf8 {[%emt 0:01:31]} 32. a3 {[%emt 0:01:12]} Qe6 {[%emt 0:01:04]} 33. Kg2 {[%emt 0:01:45]} a6 {[%emt 0:00:07]} 34. Nc5 {[%emt 0:02:44]} Bxc5 {[%emt 0:00:10]} 35. Rxc5 {[%emt 0:00:09]} Kg7 {[%emt 0:00:45]} 36. Qd1 {[%emt 0:00:28]} Qf6 {[%emt 0:00:49]} 37. Qa4 {[%emt 0:01:34]} Re6 {[%emt 0:00:41]} 38. Qa5 {[%emt 0:01:35]} Rb8 {[%emt 0:00:31]} 39. Qxa6 {[%emt 0:01:05]} Rh8 {[%emt 0:00:17]} 40. Qd3 {[%emt 0:05:08]} Rh2+ {[%emt 0:01:12]} 41. Kxh2 {[%emt 0:41:53]} Qxf2+ {[%emt 0:40:12]} 42. Kh1 {[%emt 0:00:00]} Qf3+ {[%emt 0:00:00]} 43. Kh2 {[%emt 0:00:00]} Rxe3 {[%emt 0:00:00]} 44. Qd4+ {[%emt 0:00:00]} f6 {[%emt 0:00:00]} 45. R5c2 {[%emt 0:00:00]} Qxg3+ {[%emt 0:00:00]} 46. Kh1 {[%emt 0:00:00]} Re4 {[%emt 0:00:00]} 47. Qa7+ {[%emt 0:00:00]} Kf8 {[%emt 0:00:00]} 48. Rg2 {[%emt 0:00:00]} Qf4 {[%emt 0:02:06]} 49. Qc5+ {[%emt 0:00:00]} Re7 {[%emt 0:00:46]} 50. Rh2 {[%emt 0:00:00]} Qe4+ {[%emt 0:00:40]} 51. Kg1 {[%emt 0:00:00]} d4 {[%emt 0:00:47]} 52. Qxc6 {[%emt 0:00:00]} Qe3+ {[%emt 0:00:02]} 53. Kh1 {[%emt 0:00:00]} Kg7 {[%emt 0:00:16]} 54. Rf1 {[%emt 0:00:00]} f5 {[%emt 0:00:10]} 55. Qf3 {[%emt 0:00:00]} Kf6 {[%emt 0:00:45]} 56. b5 {[%emt 0:00:00]} Qe5 {[%emt 0:00:41]} 57. b6 {[%emt 0:00:00]} Qb5 {[%emt 0:00:07]} 58. Rc1 {[%emt 0:00:12]} Re4 {[%emt 0:00:12]} 59. Rg1 {[%emt 0:06:50]} Qxb6 {[%emt 0:01:42]} 60. Rxg6+ {[%emt 0:01:25]} Kxg6 {[%emt 0:00:02]} 61. Qh5+ {[%emt 0:00:04]} Kg7 {[%emt 0:00:19]} 62. Qh8+ {[%emt 0:00:43]} Kf7 {[%emt 0:00:21]} 63. Rh7+ {[%emt 0:00:06]} 1-0

[Event "Fagernes GM Swiss 2020"]
[Site "Fagernes"]
[Date "2020.10.05"]
[Round "2.5"]
[White "Notkevich, Benjamin Arvola"]
[Black "Vitenberg, Noam Aviv"]
[Result "1/2-1/2"]
[ECO "E04"]
[WhiteElo "2482"]
[BlackElo "2298"]
[Annotator "ChessBase"]
[PlyCount "58"]
[EventDate "2020.10.04"]
[EventType "swiss"]
[EventCountry "NOR"]
[SourceTitle "playchess.com"]
[Source "ChessBase"]
[SourceQuality "1"]
[TimeControl "40/6000+30:2400+30"]

1. d4 {[%emt 0:01:40]} d5 {[%emt 0:00:00]} 2. c4 {[%emt 0:00:04]} e6 {[%emt 0:00:19]} 3. Nf3 {[%emt 0:00:49]} Nf6 {[%emt 0:00:31]} 4. g3 {[%emt 0:00:07]} dxc4 {[%emt 0:03:23]} 5. Bg2 {[%emt 0:00:20]} a6 {[%emt 0:00:42]} 6. O-O {[%emt 0:00:08]} Nc6 {[%emt 0:00:49]} 7. e3 {[%emt 0:00:06]} Rb8 {[%emt 0:02:45]} 8. Nfd2 {[%emt 0:00:23]} e5 {[%emt 0:00:35]} 9. Bxc6+ {[%emt 0:00:06]} bxc6 {[%emt 0:00:05]} 10. dxe5 {[%emt 0:00:04]} Ng4 {[%emt 0:00:34]} 11. Nxc4 {[%emt 0:00:09]} Be6 {[%emt 0:00:34]} 12. Nbd2 {[%emt 0:00:10]} Bb4 {[%emt 0:04:30]} 13. b3 {[%emt 0:00:26]} h5 {[%emt 0:02:09]} 14. h3 {[%emt 0:00:13]} Bc3 {[%emt 0:01:31]} 15. Ba3 {[%emt 0:00:28]} Bxa1 {[%emt 0:12:34]} 16. Qxa1 {[%emt 0:00:37]} h4 {[%emt 0:01:33]} 17. hxg4 {[%emt 0:00:30]} hxg3 {[%emt 0:00:40]} 18. Nf3 {[%emt 0:00:21]} Qd3 {[%emt 0:01:38]} 19. Ncd2 {[%emt 0:00:13]} Rd8 {[%emt 0:02:47]} 20. Qc1 {[%emt 0:02:32]} g2 {[%emt 0:07:44]} 21. Kxg2 {[%emt 0:08:21]} Bxg4 {[%emt 0:03:36]} 22. Rh1 {[%emt 0:42:30]} Bxf3+ {[%emt 0:20:38]} 23. Kxf3 {[%emt 0:00:20]} Qf5+ {[%emt 0:00:22]} 24. Ke2 {[%emt 0:01:11]} Qd3+ {[%emt 0:01:03]} 25. Kf3 {[%emt 0:00:07]} Qf5+ {[%emt 0:00:24]} 26. Ke2 {[%emt 0:00:07]} Qd3+ {[%emt 0:00:11]} 27. Kf3 {[%emt 0:00:07]} Qf5+ {[%emt 0:00:12]} 28. Ke2 {[%emt 0:00:07]} Qd3+ {[%emt 0:00:06]} 29. Kf3 {[%emt 0:00:07]} Qf5+ {[%emt 0:00:12]} 1/2-1/2

[Event "Fagernes GM Swiss 2020"]
[Site "Fagernes"]
[Date "2020.10.05"]
[Round "2.6"]
[White "Carlsson, Ludvig"]
[Black "Haug, Johannes"]
[Result "1/2-1/2"]
[ECO "A46"]
[WhiteElo "2281"]
[BlackElo "2481"]
[Annotator "ChessBase"]
[PlyCount "55"]
[EventDate "2020.10.04"]
[EventType "swiss"]
[EventCountry "NOR"]
[SourceTitle "playchess.com"]
[Source "ChessBase"]
[SourceQuality "1"]
[TimeControl "40/6000+30:2400+30"]

1. d4 {[%emt 0:00:00]} Nf6 {[%emt 0:00:00]} 2. Nf3 {[%emt 0:00:00]} e6 {[%emt 0:00:00]} 3. g3 {[%emt 0:00:00]} b5 {[%emt 0:04:06]} 4. e3 {[%emt 0:00:32]} a6 {[%emt 0:01:54]} 5. a4 {[%emt 0:00:28]} b4 {[%emt 0:00:42]} 6. Bg2 {[%emt 0:00:09]} Bb7 {[%emt 0:05:14]} 7. O-O {[%emt 0:00:14]} c5 {[%emt 0:00:31]} 8. c4 {[%emt 0:06:58]} bxc3 {[%emt 0:07:03]} 9. bxc3 {[%emt 0:06:30]} Nc6 {[%emt 0:06:40]} 10. Ba3 {[%emt 0:06:01]} Na5 {[%emt 0:05:07]} 11. Nbd2 {[%emt 0:06:33]} Qc7 {[%emt 0:06:45]} 12. Qe2 {[%emt 0:07:47]} Ne4 {[%emt 0:01:37]} 13. Nxe4 {[%emt 0:08:23]} Bxe4 {[%emt 0:04:58]} 14. Nd2 {[%emt 0:00:08]} Bxg2 {[%emt 0:00:24]} 15. Kxg2 {[%emt 0:00:06]} Be7 {[%emt 0:03:39]} 16. Ne4 {[%emt 0:09:56]} d6 {[%emt 0:01:46]} 17. dxc5 {[%emt 0:07:01]} dxc5 {[%emt 0:01:26]} 18. c4 {[%emt 0:09:34]} Qc6 {[%emt 0:09:08]} 19. Qf3 {[%emt 0:00:21]} O-O {[%emt 0:03:19]} 20. Nxc5 {[%emt 0:02:40]} Qxf3+ {[%emt 0:15:18]} 21. Kxf3 {[%emt 0:00:07]} Nxc4 {[%emt 0:00:05]} 22. Rfc1 {[%emt 0:00:28]} Nxa3 {[%emt 0:00:28]} 23. Rxa3 {[%emt 0:00:06]} g5 {[%emt 0:04:28]} 24. Rac3 {[%emt 0:03:07]} Rfb8 {[%emt 0:03:59]} 25. Rb3 {[%emt 0:03:21]} Rc8 {[%emt 0:03:51]} 26. Rbc3 {[%emt 0:00:37]} Rcb8 {[%emt 0:02:45]} 27. Rb3 {[%emt 0:00:44]} Rc8 {[%emt 0:00:24]} 28. Rbc3 {[%emt 0:00:08]} 1/2-1/2

[Event "Fagernes GM Swiss 2020"]
[Site "Fagernes"]
[Date "2020.10.05"]
[Round "2.8"]
[White "Nielsen, Andre"]
[Black "Holm, Kristian Stuvik"]
[Result "1/2-1/2"]
[ECO "C54"]
[WhiteElo "2218"]
[BlackElo "2465"]
[Annotator "ChessBase"]
[PlyCount "36"]
[EventDate "2020.10.04"]
[EventType "swiss"]
[EventCountry "NOR"]
[SourceTitle "playchess.com"]
[Source "ChessBase"]
[SourceQuality "1"]
[TimeControl "40/6000+30:2400+30"]

1. e4 {[%emt 0:00:00]} e5 {[%emt 0:02:18]} 2. Nf3 {[%emt 0:00:31]} Nc6 {[%emt 0:00:05]} 3. Bc4 {[%emt 0:00:22]} Bc5 {[%emt 0:00:18]} 4. c3 {[%emt 0:00:31]} Nf6 {[%emt 0:00:04]} 5. d3 {[%emt 0:00:27]} d6 {[%emt 0:00:25]} 6. Nbd2 {[%emt 0:01:36]} a6 {[%emt 0:00:30]} 7. Bb3 {[%emt 0:01:50]} Ba7 {[%emt 0:01:05]} 8. Nf1 {[%emt 0:06:12]} h6 {[%emt 0:14:26]} 9. Ng3 {[%emt 0:02:41]} Be6 {[%emt 0:11:07]} 10. O-O {[%emt 0:06:43]} O-O {[%emt 0:01:12]} 11. d4 {[%emt 0:23:17]} Bxb3 {[%emt 0:14:40]} 12. Qxb3 {[%emt 0:01:32]} exd4 {[%emt 0:01:43]} 13. cxd4 {[%emt 0:01:12]} Re8 {[%emt 0:07:12]} 14. d5 {[%emt 0:13:50]} Nd4 {[%emt 0:03:20]} 15. Nxd4 {[%emt 0:01:43]} Bxd4 {[%emt 0:00:04]} 16. Nf5 {[%emt 0:10:31]} Rxe4 {[%emt 0:01:20]} 17. Bxh6 {[%emt 0:02:45]} gxh6 {[%emt 0:23:20]} 18. Qg3+ {[%emt 0:02:00]} Ng4 {[%emt 0:00:20]} 1/2-1/2

[Event "Fagernes GM Swiss 2020"]
[Site "Fagernes"]
[Date "2020.10.05"]
[Round "2.9"]
[White "Starostits, Ilmars"]
[Black "Dolzhikova, Olga"]
[Result "1-0"]
[ECO "B00"]
[WhiteElo "2464"]
[BlackElo "2208"]
[Annotator "ChessBase"]
[PlyCount "47"]
[EventDate "2020.10.04"]
[EventType "swiss"]
[EventCountry "NOR"]
[SourceTitle "playchess.com"]
[Source "ChessBase"]
[SourceQuality "1"]
[TimeControl "40/6000+30:2400+30"]

1. d4 {[%emt 0:00:00]} b6 {[%emt 0:00:00]} 2. e4 {[%emt 0:00:00]} Bb7 {[%emt 0:00:00]} 3. Nc3 {[%emt 0:00:27]} e6 {[%emt 0:00:27]} 4. Nf3 {[%emt 0:02:30]} Bb4 {[%emt 0:05:21]} 5. Bd3 {[%emt 0:00:38]} Nf6 {[%emt 0:04:35]} 6. Qe2 {[%emt 0:04:54]} d5 {[%emt 0:08:17]} 7. e5 {[%emt 0:00:07]} Ne4 {[%emt 0:00:46]} 8. O-O {[%emt 0:00:07]} Nxc3 {[%emt 0:07:19]} 9. bxc3 {[%emt 0:00:04]} Bxc3 {[%emt 0:00:11]} 10. Rb1 {[%emt 0:00:15]} Nc6 {[%emt 0:00:46]} 11. Rd1 {[%emt 0:10:21]} a6 {[%emt 0:05:52]} 12. Qe3 {[%emt 0:01:52]} Bb4 {[%emt 0:10:11]} 13. Qf4 {[%emt 0:12:49]} Qe7 {[%emt 0:10:14]} 14. Qg3 {[%emt 0:03:53]} f5 {[%emt 0:06:17]} 15. c4 {[%emt 0:01:55]} Na5 {[%emt 0:16:34]} 16. a3 {[%emt 0:09:23]} Bxa3 {[%emt 0:04:42]} 17. Bxa3 {[%emt 0:00:13]} Qxa3 {[%emt 0:00:09]} 18. c5 {[%emt 0:01:07]} g6 {[%emt 0:10:42]} 19. Ng5 {[%emt 0:01:03]} Ke7 {[%emt 0:02:23]} 20. Nxe6 {[%emt 0:00:53]} Rac8 {[%emt 0:05:39]} 21. Qg5+ {[%emt 0:02:47]} Kxe6 {[%emt 0:04:59]} 22. Qf6+ {[%emt 0:00:05]} Kd7 {[%emt 0:00:03]} 23. Qf7+ {[%emt 0:00:06]} Kd8 {[%emt 0:00:13]} 24. e6 {[%emt 0:00:05]} 1-0

[Event "Fagernes GM Swiss 2020"]
[Site "Fagernes"]
[Date "2020.10.05"]
[Round "2.10"]
[White "Skaslien, Ingrid"]
[Black "Elsness, Frode"]
[Result "0-1"]
[ECO "E48"]
[WhiteElo "1976"]
[BlackElo "2454"]
[Annotator "ChessBase"]
[PlyCount "98"]
[EventDate "2020.10.04"]
[EventType "swiss"]
[EventCountry "NOR"]
[SourceTitle "playchess.com"]
[Source "ChessBase"]
[SourceQuality "1"]
[TimeControl "40/6000+30:2400+30"]

1. d4 {[%emt 0:00:00]} Nf6 {[%emt 0:03:00]} 2. c4 {[%emt 0:00:00]} e6 {[%emt 0:00:35]} 3. Nc3 {[%emt 0:00:06]} Bb4 {[%emt 0:00:18]} 4. e3 {[%emt 0:00:36]} O-O {[%emt 0:00:40]} 5. Bd3 {[%emt 0:00:24]} d5 {[%emt 0:00:22]} 6. Nge2 {[%emt 0:02:50]} b6 {[%emt 0:04:42]} 7. cxd5 {[%emt 0:02:45]} exd5 {[%emt 0:00:54]} 8. O-O {[%emt 0:00:53]} Bb7 {[%emt 0:02:43]} 9. Bd2 {[%emt 0:08:09]} Bd6 {[%emt 0:02:54]} 10. Ng3 {[%emt 0:09:17]} Re8 {[%emt 0:03:37]} 11. Rc1 {[%emt 0:11:46]} a6 {[%emt 0:02:56]} 12. Nf5 {[%emt 0:06:33]} Bf8 {[%emt 0:01:23]} 13. Qb3 {[%emt 0:13:29]} Nbd7 {[%emt 0:05:56]} 14. Na4 {[%emt 0:05:09]} g6 {[%emt 0:08:43]} 15. Ng3 {[%emt 0:01:27]} Rb8 {[%emt 0:01:19]} 16. Bb4 {[%emt 0:08:56]} Bg7 {[%emt 0:09:52]} 17. Qc2 {[%emt 0:02:22]} Rc8 {[%emt 0:03:28]} 18. Qe2 {[%emt 0:02:46]} a5 {[%emt 0:08:39]} 19. Ba3 {[%emt 0:01:16]} c6 {[%emt 0:06:17]} 20. b4 {[%emt 0:06:41]} Bf8 {[%emt 0:04:28]} 21. Qb2 {[%emt 0:01:54]} Qe7 {[%emt 0:04:05]} 22. Rb1 {[%emt 0:00:45]} Ra8 {[%emt 0:05:58]} 23. Bc2 {[%emt 0:01:21]} Ba6 {[%emt 0:04:11]} 24. Rfc1 {[%emt 0:02:39]} Bc4 {[%emt 0:05:02]} 25. Nf1 {[%emt 0:04:33]} axb4 {[%emt 0:02:32]} 26. Bxb4 {[%emt 0:00:13]} Qxb4 {[%emt 0:01:04]} 27. Qxb4 {[%emt 0:00:05]} Bxb4 {[%emt 0:00:03]} 28. Rxb4 {[%emt 0:00:06]} b5 {[%emt 0:01:06]} 29. Nc3 {[%emt 0:04:58]} Bxa2 {[%emt 0:00:33]} 30. Nxa2 {[%emt 0:00:19]} Rxa2 {[%emt 0:00:01]} 31. Bb1 {[%emt 0:00:46]} Ra6 {[%emt 0:00:41]} 32. Nd2 {[%emt 0:00:56]} Re6 {[%emt 0:02:57]} 33. Nb3 {[%emt 0:01:30]} Ne8 {[%emt 0:01:46]} 34. Nc5 {[%emt 0:01:38]} Nxc5 {[%emt 0:00:05]} 35. dxc5 {[%emt 0:00:13]} Nc7 {[%emt 0:03:24]} 36. Bd3 {[%emt 0:05:41]} Re8 {[%emt 0:01:22]} 37. e4 {[%emt 0:00:32]} Ra3 {[%emt 0:01:11]} 38. Bb1 {[%emt 0:01:31]} Ra1 {[%emt 0:03:20]} 39. exd5 {[%emt 0:01:04]} Nxd5 {[%emt 0:00:14]} 40. Rb3 {[%emt 0:01:00]} Re5 {[%emt 0:04:22]} 41. g3 {[%emt 0:05:18]} Nc7 {[%emt 0:04:32]} 42. Kg2 {[%emt 0:05:42]} Na6 {[%emt 0:11:40]} 43. Re3 {[%emt 0:15:00]} Rxe3 {[%emt 0:07:29]} 44. fxe3 {[%emt 0:00:30]} b4 {[%emt 0:00:30]} 45. Kf3 {[%emt 0:00:30]} Ra4 {[%emt 0:00:30]} 46. Kg2 {[%emt 0:00:09]} Ra1 {[%emt 0:00:30]} 47. Kf3 {[%emt 0:01:48]} b3 {[%emt 0:02:35]} 48. Ke2 {[%emt 0:05:24]} Nxc5 {[%emt 0:02:19]} 49. Rxc5 {[%emt 0:00:33]} Rxb1 {[%emt 0:00:03]} 0-1

[Event "Fagernes GM Swiss 2020"]
[Site "Fagernes"]
[Date "2020.10.05"]
[Round "2.11"]
[White "Kaasen, Tor Fredrik"]
[Black "Skotheim, Andreas"]
[Result "1/2-1/2"]
[ECO "C88"]
[WhiteElo "2386"]
[BlackElo "2120"]
[Annotator "NA"]
[PlyCount "94"]
[EventDate "2020.10.04"]
[EventType "swiss"]
[EventCountry "NOR"]
[SourceTitle "playchess.com"]
[Source "ChessBase"]
[SourceQuality "1"]
[TimeControl "40/6000+30:2400+30"]

1. e4 {[%emt 0:03:24]} e5 {[%emt 0:00:00]} 2. Nf3 {[%emt 0:01:08]} Nc6 {[%emt 0:00:09]} 3. Bb5 {[%emt 0:01:19]} a6 {[%emt 0:00:13]} 4. Ba4 {[%emt 0:00:36]} Nf6 {[%emt 0:00:21]} 5. O-O {[%emt 0:00:34]} Be7 {[%emt 0:00:16]} 6. Re1 {[%emt 0:01:12]} b5 {[%emt 0:00:27]} 7. Bb3 {[%emt 0:00:14]} O-O {[%emt 0:01:02]} 8. a4 {[%emt 0:00:51]} b4 {[%emt 0:02:55]} 9. d4 {[%emt 0:00:57]} d6 {[%emt 0:01:42]} 10. dxe5 {[%emt 0:00:40]} Nxe5 {[%emt 0:01:54]} 11. Nxe5 {[%emt 0:03:25]} dxe5 {[%emt 0:00:07]} 12. Qf3 {[%emt 0:00:09]} Bb7 {[%emt 0:09:17]} 13. Nd2 {[%emt 0:02:04]} Nd7 {[%emt 0:23:25]} 14. Bc4 {[%emt 0:11:33]} Bc5 {[%emt 0:07:15]} 15. Qg3 {[%emt 0:03:44]} Qf6 {[%emt 0:23:39]} 16. Nf3 {[%emt 0:04:36]} Qg6 {[%emt 0:04:04]} 17. Qh3 {[%emt 0:08:16]} Rad8 {[%emt 0:05:13]} 18. a5 {[%emt 0:10:41]} Bc8 {[%emt 0:02:44]} 19. Qh4 {[%emt 0:08:49]} h6 {[%emt 0:02:25]} 20. Be3 {[%emt 0:05:38]} Bd6 {[%emt 0:05:00]} 21. Rad1 {[%emt 0:04:49]} Nf6 {[%emt 0:01:08]} 22. Nd2 {[%emt 0:08:13]} Qg4 {[%emt 0:04:53]} 23. Qxg4 {[%emt 0:02:28]} Nxg4 {[%emt 0:00:06]} 24. Ba7 {[%emt 0:00:41]} Nf6 {[%emt 0:00:59]} 25. f3 {[%emt 0:01:33]} Nd7 {[%emt 0:00:45]} 26. Nb3 {[%emt 0:00:39]} Bb7 {[%emt 0:00:00]} 27. Bf2 {[%emt 0:02:19]} g6 {[%emt 0:02:03]} 28. Rd2 {[%emt 0:05:35]} Kg7 {[%emt 0:01:34]} 29. Bh4 {[%emt 0:03:47]} Rde8 {[%emt 0:01:50]} 30. Red1 {[%emt 0:01:34]} Nc5 {[%emt 0:01:10]} 31. Rxd6 {[%emt 0:05:53]} cxd6 {[%emt 0:00:08]} 32. Rxd6 {[%emt 0:00:07]} Na4 {[%emt 0:05:07]} 33. Bf6+ {[%emt 0:00:38]} Kg8 {[%emt 0:00:11]} 34. Rd7 {[%emt 0:06:14]} Bc6 {[%emt 0:01:36]} 35. Rc7 {[%emt 0:00:23]} Bb5 {[%emt 0:00:16]} 36. Bxb5 {[%emt 0:02:22]} axb5 {[%emt 0:00:06]} 37. Rb7 {[%emt 0:00:27]} Re6 {[%emt 0:01:13]} 38. Be7 {[%emt 0:00:20]} Rc8 {[%emt 0:00:15]} 39. Bxb4 {[%emt 0:00:34]} Rxc2 {[%emt 0:00:46]} 40. Rb8+ {[%emt 0:00:27]} Kh7 {[%emt 0:02:11]} 41. Ba3 {[%emt 0:03:52]} Nxb2 {[%emt 0:05:45]} 42. Rxb5 {[%emt 0:03:38]} Nc4 {[%emt 0:03:46]} 43. Bc5 {[%emt 0:01:02]} Rb2 {[%emt 0:04:19]} 44. Rb7 {[%emt 0:05:32]} Kg7 {[%emt 0:06:30]} 45. Rb4 {[%emt 0:00:28]} Ra6 {[%emt 0:16:48]} 46. Rxc4 {[%emt 0:02:26]} Rxb3 {[%emt 0:00:08]} 47. Bb6 {[%emt 0:00:06]} Rbxb6 {[%emt 0:01:01]} 1/2-1/2